bitfinex/quotes_ETHUSD_20250131
["timestamp","ask_amount","ask_price","bid_price","bid_amount"]
[1738328048074,0.7911,3354.6,3353.7,0.57981291]
[1738328048910,0.7911,3354.6,3353.7,0.55]
[1738328051407,9.62413385,3354.6,3353.7,0.57981289]
[1738328051715,8.83303385,3354.8,3354.2,3.0]
[1738328051871,8.83303385,3355.1,3354.4,2.69930887]
[1738328053922,8.83303385,3355.1,3354.4,2.72911781]
[1738328054233,8.83303385,3355.1,3354.2,3.64525089]
[1738328054536,9.79728723,3355.1,3354.2,3.0]
[1738328054895,9.79728723,3355.1,3354.2,3.02980916]
[1738328055228,9.79728723,3355.1,3354.4,2.69930887]
[1738328055434,9.79728723,3355.1,3354.4,2.72911725]
[1738328055735,9.79728723,3355.1,3354.5,0.02797618]
[1738328056297,1.06067872,3355.0,3354.5,0.02797618]
[1738328056819,0.7705,3354.9,3354.5,0.02797618]
[1738328057133,0.7705,3354.9,3353.9,0.60860408]
[1738328057338,8.83303385,3354.8,3354.6,0.02798941]
[1738328057523,8.83303385,3354.8,3353.9,0.60860408]
[1738328057719,1.06642126,3354.7,3353.9,0.60860408]
[1738328060332,1.06642126,3354.7,3353.8,2.69930887]
[1738328060533,0.7531,3354.6,3353.8,2.69930887]
[1738328061542,0.78646854,3354.6,3353.8,2.69930887]
[1738328062498,0.7531,3354.6,3353.8,2.69930887]
[1738328062740,0.03336854,3354.5,3353.8,2.69930887]
[1738328063401,8.83303385,3354.4,3353.8,2.69930887]
[1738328063602,8.83303385,3354.4,3353.5,2.69930887]
[1738328063603,0.03336854,3354.3,3353.5,2.69930887]
[1738328063799,0.7539,3354.1,3353.1,0.55]
[1738328064002,8.86640239,3354.0,3353.1,0.32493089]
[1738328064249,8.83303385,3354.0,3353.1,0.7869]
[1738328064463,0.03336854,3353.9,3353.1,0.7869]
[1738328064646,8.83303385,3354.0,3353.1,0.7869]
[1738328064800,8.83303385,3354.0,3353.2,0.02817906]
[1738328065004,9.79172723,3354.0,3353.2,0.02817906]
[1738328065251,0.7709,3353.8,3353.4,2.69930887]
[1738328065420,0.03336854,3353.7,3353.3,0.60334514]
[1738328065786,8.83303385,3353.9,3353.4,2.72748793]
[1738328066582,0.03336854,3353.8,3353.4,2.72748793]
[1738328067082,0.96373024,3353.8,3353.4,2.72748793]
[1738328067986,0.96373024,3353.8,3353.4,0.02817906]
[1738328068134,0.99709878,3353.8,3353.3,0.60334514]
[1738328068338,0.96373024,3353.8,3353.4,0.02817906]
[1738328068540,0.03336854,3353.7,3353.3,0.60334514]
[1738328068996,0.03336854,3353.7,3353.4,0.02817906]
[1738328069290,0.03336854,3353.7,3353.1,2.69930887]
[1738328069291,0.7909,3353.5,3353.1,2.69930887]
[1738328069586,9.65730239,3353.5,3353.1,2.69930887]
[1738328069741,9.62393385,3353.5,3353.1,2.69930887]
[1738328070685,9.62393385,3353.5,3353.2,0.02817906]
[1738328072394,8.83303385,3353.4,3353.2,0.02817906]
[1738328072590,8.83303385,3353.4,3353.1,2.69930887]
[1738328073744,8.83303385,3353.4,3353.2,0.02817906]
[1738328075293,8.83303385,3353.7,3353.2,0.02817906]
[1738328075650,8.83303385,3353.7,3353.3,0.76]
[1738328075859,8.83303385,3353.7,3353.4,2.69930887]
[1738328076062,8.83303385,3353.7,3353.4,2.72815852]
[1738328076395,8.83303385,3354.4,3353.4,2.72815852]
[1738328076622,8.83303385,3354.3,3353.9,2.69930887]
[1738328076757,8.83303385,3354.4,3353.9,2.69930887]
[1738328077105,8.83303385,3354.4,3354.0,0.02884965]
[1738328077300,8.83303385,3354.4,3354.2,2.69930887]
[1738328077602,0.7901,3354.8,3354.3,0.02871728]
[1738328077768,0.96231339,3354.7,3354.2,2.69930887]
[1738328079284,0.7901,3354.8,3354.2,2.69930887]
[1738328081171,8.83303385,3354.7,3354.2,2.69930887]
[1738328082571,9.58693385,3355.1,3354.5,2.69930887]
[1738328082810,8.83303385,3355.0,3354.6,0.7599]
[1738328082971,8.83303385,3355.0,3354.6,0.78837025]
[1738328084806,8.83303385,3355.7,3354.7,0.0075]
[1738328085012,8.83303385,3355.7,3355.6,2.69930887]
[1738328085230,8.83303385,3356.1,3355.6,3.46050887]
[1738328085517,8.83303385,3356.1,3356.0,2.69930887]
[1738328085686,8.83303385,3356.5,3356.0,2.69930887]
[1738328086012,8.83303385,3356.4,3356.0,2.69930887]
[1738328090024,8.83303385,3356.8,3356.0,2.69930887]
[1738328090323,9.26706671,3356.8,3356.0,2.69930887]
[1738328090792,9.26706671,3356.8,3355.7,0.0297974]
[1738328090793,8.83303385,3356.8,3356.3,2.69930887]
[1738328090935,8.83303385,3356.8,3356.3,3.45480887]
[1738328091235,0.8055,3356.9,3356.3,3.45480887]
[1738328091537,8.83303385,3357.0,3356.3,3.45480887]
[1738328091738,8.83303385,3356.9,3356.6,2.69930887]
[1738328092033,8.83303385,3356.9,3356.6,3.04478976]
[1738328096116,8.83303385,3357.2,3356.6,3.04478976]
[1738328096311,8.83303385,3357.2,3356.9,2.69930887]
[1738328101954,0.3,3357.3,3356.9,2.69930887]
[1738328104952,0.3,3357.3,3357.2,3.45740887]
[1738328105119,0.3,3357.3,3356.9,3.46460887]
[1738328105797,0.3,3357.3,3356.9,2.69930887]
[1738328105941,1.0709,3357.3,3356.6,3.46610887]
[1738328106654,8.83303385,3357.2,3356.6,2.69930887]
[1738328107153,8.83303385,3357.2,3356.6,3.02721855]
[1738328107361,8.83303385,3357.2,3356.7,0.7684]
[1738328107741,8.83303385,3357.2,3356.9,2.69930887]
[1738328109989,8.83303385,3357.2,3356.7,0.7684]
[1738328110146,8.83303385,3357.2,3356.6,2.69930887]
[1738328110987,0.83496854,3357.1,3356.6,2.69930887]
[1738328111184,0.8016,3357.1,3356.6,2.69930887]
[1738328111392,0.83496854,3357.1,3356.6,2.69930887]
[1738328112194,0.8016,3357.1,3356.6,2.69930887]
[1738328114152,0.91330339,3357.2,3356.6,2.69930887]
[1738328114454,1.04612019,3357.1,3356.5,0.0075]
[1738328114712,1.04612019,3357.1,3356.4,0.8157]
[1738328114916,1.07948873,3357.1,3356.3,2.69930887]
[1738328115185,0.8115,3357.0,3356.3,2.69930887]
[1738328115577,0.03336854,3356.9,3356.1,0.8134]
[1738328115883,0.22246741,3356.9,3356.0,2.69930887]
[1738328116710,0.22246741,3356.9,3356.0,3.29106398]
[1738328116849,9.05550126,3356.9,3356.0,3.29106398]
[1738328117050,1.09131215,3356.8,3356.0,3.29106398]
[1738328117791,0.787,3356.6,3356.0,2.69930887]
[1738328117990,0.03336854,3356.5,3355.8,0.7815]
[1738328118167,8.86640239,3356.5,3355.7,2.69930887]
[1738328118488,8.83303385,3356.5,3355.7,2.69930887]
[1738328118679,0.99537193,3356.4,3355.7,2.69930887]
[1738328119802,0.99537193,3356.4,3355.8,0.0075]
[1738328120891,0.7965,3356.3,3355.4,2.69930887]
[1738328124287,0.03336854,3356.2,3355.4,2.69930887]
[1738328124593,0.8147,3356.1,3355.4,2.69930887]
[1738328124795,0.03336854,3356.0,3355.4,2.69930887]
[1738328124972,8.86640239,3356.0,3355.4,2.69930887]
[1738328125173,0.96811024,3355.9,3355.4,2.69930887]
[1738328125500,0.86516854,3355.8,3355.4,2.69930887]
[1738328125668,9.66483385,3355.8,3355.4,2.69930887]
[1738328126083,9.66483385,3355.8,3355.1,2.69930887]
[1738328127362,9.66483385,3355.8,3355.2,0.0075]
[1738328127614,9.66483385,3355.8,3355.4,2.69930887]
[1738328127815,8.83303385,3355.8,3355.4,2.69930887]
[1738328128125,8.83303385,3355.8,3355.7,2.70680887]
[1738328129602,0.78164906,3356.9,3355.8,0.0075]
[1738328129603,0.8252,3356.6,3355.8,0.0075]
[1738328129811,0.8252,3356.6,3356.0,2.69930887]
[1738328129812,9.65823385,3356.6,3356.0,2.69930887]
[1738328130307,10.03395341,3356.6,3356.0,2.69930887]
[1738328130515,10.03395341,3356.6,3355.8,0.0075]
[1738328130701,0.03336854,3356.5,3355.8,0.0075]
[1738328130865,10.03395341,3356.6,3355.9,0.02979518]
[1738328131201,10.03395341,3356.6,3356.0,0.0075]
[1738328131406,9.65823385,3356.6,3356.0,0.0075]
[1738328131705,9.65823385,3356.6,3356.0,2.70680887]
[1738328132766,8.83303385,3356.6,3356.2,0.0075]
[1738328133168,8.83303385,3356.6,3356.3,2.69930887]
[1738328133363,0.7633,3356.9,3356.4,0.0075]
[1738328133669,0.58894205,3357.1,3356.4,0.0075]
[1738328133913,1.65786964,3357.1,3356.4,0.0075]
[1738328134219,0.03336854,3357.0,3356.4,0.0075]
[1738328136089,1.65786964,3357.1,3356.4,0.0075]
[1738328136503,0.03336854,3357.0,3356.4,0.0075]
[1738328136918,1.06892759,3357.1,3356.4,0.03729074]
[1738328137122,9.59633385,3357.2,3356.4,0.03729074]
[1738328137293,9.59633385,3357.2,3356.4,0.0075]
[1738328137612,9.59633385,3357.2,3356.1,0.778]
[1738328137613,8.83303385,3357.1,3356.1,3.778]
[1738328137794,9.84306724,3357.1,3356.3,0.0075]
[1738328138120,9.84306724,3357.1,3356.3,2.70680887]
[1738328138322,9.84306724,3357.1,3356.5,0.0075]
[1738328138508,8.86640239,3357.0,3356.5,0.0075]
[1738328138712,10.00703739,3357.0,3356.5,0.0075]
[1738328139209,10.00703739,3357.0,3356.4,0.0075]
[1738328140002,0.8049,3356.8,3356.1,0.778]
[1738328140940,0.83826854,3356.8,3356.1,0.778]
[1738328141102,1.08453059,3356.7,3356.1,0.778]
[1738328141497,0.03336854,3356.6,3356.0,2.69930887]
[1738328141726,0.03336854,3356.6,3355.8,0.8173]
[1738328141901,8.86640239,3356.6,3355.9,0.0075]
[1738328142096,8.83303385,3356.6,3355.8,0.8173]
[1738328142341,1.07224644,3356.5,3355.8,0.8173]
[1738328142645,9.90528029,3356.5,3355.8,0.8173]
[1738328143727,8.83303385,3356.5,3355.8,0.8173]
[1738328143945,8.83303385,3356.5,3355.9,0.0075]
[1738328144117,8.83303385,3356.5,3356.1,0.0075]
[1738328146108,8.83303385,3356.5,3356.3,0.0075]
[1738328146309,8.83303385,3356.5,3356.3,2.70680887]
[1738328146505,8.83303385,3357.0,3356.3,3.05779905]
[1738328147121,8.83303385,3357.0,3356.3,2.70680887]
[1738328147327,8.83303385,3357.0,3356.3,2.73660052]
[1738328153124,0.59629964,3357.2,3356.5,0.03728835]
[1738328153365,0.59629964,3357.2,3356.5,0.0075]
[1738328153665,0.62966818,3357.2,3356.5,0.0075]
[1738328153877,0.59629964,3357.2,3356.7,0.0075]
[1738328156342,0.78766854,3357.1,3356.3,2.69930887]
[1738328156550,0.03336854,3357.0,3356.3,2.69930887]
[1738328156930,0.78766854,3357.1,3356.4,0.0075]
[1738328157978,0.78766854,3357.1,3356.0,3.49240887]
[1738328158271,0.16839682,3357.0,3356.0,0.7931]
[1738328158564,0.7601,3356.8,3355.7,3.48040405]
[1738328158765,8.86640239,3356.7,3355.7,3.45060887]
[1738328158929,8.83303385,3356.7,3355.8,0.0075]
[1738328160879,8.83303385,3356.7,3356.0,0.0075]
[1738328161184,9.80918692,3356.7,3355.7,3.48040404]
[1738328161335,8.86640239,3356.6,3355.7,3.45060887]
[1738328161541,8.83303385,3356.6,3355.7,3.45060887]
[1738328161741,0.03336854,3356.5,3355.8,0.0075]
[1738328162066,8.83303385,3356.6,3355.8,0.0075]
[1738328162264,8.83303385,3356.6,3355.7,3.45060887]
[1738328162265,1.05692869,3356.5,3355.7,3.45060887]
[1738328162482,0.764,3356.3,3355.4,3.50090887]
[1738328162656,0.03336854,3356.2,3355.4,3.50090887]
[1738328162858,0.03336854,3356.2,3355.1,3.48020887]
[1738328163587,0.7513,3356.0,3355.1,3.48020887]
[1738328163890,9.79480409,3355.9,3355.1,3.48020887]
[1738328165552,0.7851,3355.5,3354.2,0.8296]
[1738328165751,3.7851,3355.3,3354.2,0.8296]
[1738328165952,0.7851,3355.1,3354.2,0.8296]
[1738328166175,0.41521539,3355.0,3354.2,0.8296]
[1738328166341,0.03336854,3354.9,3354.2,0.8296]
[1738328166538,0.03336854,3354.9,3353.9,3.52890887]
[1738328167092,0.03336854,3354.9,3353.9,0.8296]
[1738328167093,9.64603385,3354.8,3353.9,0.8296]
[1738328167390,8.86640239,3354.7,3353.7,0.0075]
[1738328167611,1.00130878,3354.6,3353.7,0.0075]
[1738328167888,0.96794024,3354.6,3353.9,2.69930887]
[1738328168591,0.96794024,3354.6,3353.6,0.7869]
[1738328168592,0.03336854,3354.5,3353.6,0.7869]
[1738328168793,0.03336854,3354.5,3353.3,3.48760887]
[1738328168794,0.7502,3354.4,3353.3,3.48760887]
[1738328168952,0.20851942,3354.3,3353.3,3.48760887]
[1738328169293,0.17515088,3354.3,3353.3,3.48760887]
[1738328169465,0.7502,3354.4,3353.7,0.0075]
[1738328169677,0.96794024,3354.6,3353.9,2.69930887]
[1738328170496,8.83303385,3354.5,3353.9,2.69930887]
[1738328171156,8.83303385,3354.5,3354.2,2.70680887]
[1738328171366,8.83303385,3355.2,3354.2,3.08709226]
[1738328171560,8.83303385,3355.2,3354.8,0.7979]
[1738328171804,0.204,3355.3,3354.9,0.0075]
[1738328172104,0.204,3355.3,3354.8,0.8277054]
[1738328172288,0.204,3355.3,3354.8,1.15060143]
[1738328172495,0.204,3355.3,3354.9,0.0075]
[1738328173201,0.204,3355.3,3355.0,2.69930887]
[1738328173365,8.83303385,3355.6,3355.0,2.69930887]
[1738328173867,0.607673,3356.3,3355.4,0.8118]
[1738328173868,9.80053385,3356.3,3355.4,0.8118]
[1738328174068,8.83303385,3356.2,3355.5,0.0075]
[1738328174798,8.83303385,3356.2,3355.6,2.69930887]
[1738328175276,9.60553385,3356.6,3355.9,2.69930887]
[1738328175490,0.96055339,3356.5,3356.0,0.7905]
[1738328175666,0.7725,3356.6,3356.0,0.7905]
[1738328176013,0.7725,3356.9,3356.0,0.7905]
[1738328176168,8.83303385,3357.1,3356.2,2.69930887]
[1738328176366,8.86640239,3357.0,3356.0,0.7905]
[1738328176562,8.83303385,3357.0,3356.0,0.7905]
[1738328176764,1.49555338,3356.9,3356.0,0.7905]
[1738328177158,0.03336854,3356.8,3356.0,0.7905]
[1738328177408,1.49555338,3356.9,3356.0,0.7905]
[1738328177607,1.52892192,3356.9,3356.0,0.7905]
[1738328177795,1.52892192,3356.9,3355.7,0.7905]
[1738328177796,0.7725,3356.8,3355.7,0.7905]
[1738328177994,1.14681412,3356.7,3355.7,0.7905]
[1738328179274,0.7725,3356.6,3355.4,0.782]
[1738328179506,8.86640239,3356.5,3355.4,0.782]
[1738328179812,8.83303385,3356.5,3355.4,0.782]
[1738328180114,8.83303385,3356.4,3355.7,0.779]
[1738328180407,8.83303385,3356.5,3356.3,0.0075]
[1738328180609,8.83303385,3357.1,3356.4,0.779]
[1738328181292,8.83303385,3357.0,3356.5,0.03729154]
[1738328181497,8.83303385,3357.0,3356.5,2.73660041]
[1738328181885,8.83303385,3357.0,3356.5,2.70680887]
[1738328182085,8.83303385,3357.0,3356.6,0.02978897]
[1738328182671,8.83303385,3357.0,3356.5,2.70680887]
[1738328183274,8.83303385,3357.0,3356.6,0.02978898]
[1738328183509,8.83303385,3357.0,3356.5,2.70680887]
[1738328183810,8.83303385,3357.0,3356.6,0.02978898]
[1738328184518,8.83303385,3357.0,3356.5,2.70680887]
[1738328184752,8.83303385,3357.0,3356.5,0.0075]
[1738328184953,9.80580125,3357.0,3356.5,0.0075]
[1738328185112,8.83303385,3357.2,3356.5,0.0075]
[1738328185313,8.83303385,3357.1,3356.6,0.02978994]
[1738328186011,8.83303385,3357.1,3356.5,2.70680887]
[1738328186325,8.83303385,3357.1,3356.6,0.02978899]
[1738328186524,8.83303385,3357.1,3356.5,2.70680887]
[1738328186723,8.83303385,3357.1,3356.6,0.02978899]
[1738328186932,8.83303385,3357.1,3356.7,0.0075]
[1738328187610,8.83303385,3357.1,3356.6,0.0075]
[1738328189014,9.80580125,3357.1,3356.5,2.69930887]
[1738328189445,9.80580125,3357.1,3356.6,0.832]
[1738328189663,8.83303385,3357.1,3356.8,0.8013]
[1738328191044,8.83303385,3357.2,3356.8,0.8013]
[1738328192952,8.83303385,3357.2,3356.9,0.0075]
[1738328196312,0.3,3357.3,3357.1,2.69930887]
[1738328196614,0.3,3357.3,3357.1,0.35378954]
[1738328196765,0.3,3357.3,3356.9,0.0075]
[1738328197580,0.3,3357.3,3356.8,0.8013]
[1738328198884,1.1069,3357.3,3356.5,2.69930887]
[1738328199089,0.3,3357.3,3356.7,0.0075]
[1738328200130,9.13303385,3357.3,3356.6,0.0075]
[1738328200284,10.13036409,3357.3,3356.6,0.0075]
[1738328200483,9.13303385,3357.3,3356.6,0.03728918]
[1738328200684,9.13303385,3357.3,3356.6,0.0075]
[1738328201532,9.13303385,3357.3,3356.6,0.03728899]
[1738328201702,9.13303385,3357.3,3356.6,0.0075]
[1738328201903,0.03336854,3357.2,3356.5,0.8043]
[1738328202120,9.13303385,3357.3,3356.5,0.8043]
[1738328202346,0.91330339,3357.2,3356.5,0.8043]
[1738328203029,0.7979,3357.1,3356.5,0.8043]
[1738328206048,8.83303385,3357.0,3356.5,0.8043]
[1738328206187,8.83303385,3357.0,3356.6,0.03729038]
[1738328206535,8.83303385,3357.0,3356.6,0.0075]
[1738328207535,8.83303385,3357.0,3356.2,3.47480887]
[1738328207709,8.83303385,3357.0,3356.3,0.0075]
[1738328208228,0.7669,3356.9,3356.3,0.0075]
[1738328208791,9.59993385,3356.9,3356.3,0.0075]
[1738328208997,0.03336854,3356.8,3355.9,3.47480887]
[1738328209193,9.82973263,3356.8,3355.9,3.47480887]
[1738328209393,9.79636409,3356.8,3356.0,0.0075]
[1738328209593,0.7714,3356.6,3355.9,2.69930887]
[1738328214854,9.60443385,3356.6,3355.9,2.69930887]
[1738328215168,9.60443385,3356.6,3355.7,0.02979523]
[1738328215369,0.8091,3356.4,3355.3,3.50620887]
[1738328215548,8.86640239,3356.3,3355.4,0.0075]
[1738328215756,8.83303385,3356.3,3355.4,0.0075]
[1738328218630,0.03336854,3356.2,3355.4,0.0075]
[1738328218861,0.7776,3356.0,3355.3,2.69930887]
[1738328220271,0.8119,3356.4,3355.9,2.69930887]
[1738328221352,0.03336854,3356.3,3355.6,2.70680887]
[1738328221760,0.03336854,3356.3,3355.4,0.754]
[1738328221930,0.03336854,3356.3,3355.3,2.69930887]
[1738328222129,0.8119,3356.4,3355.4,0.0075]
[1738328222330,0.03336854,3356.3,3355.4,0.0075]
[1738328222867,0.7678,3356.2,3355.4,0.0075]
[1738328223068,0.03336854,3356.1,3355.3,2.69930887]
[1738328224006,8.83303385,3356.0,3355.3,2.69930887]
[1738328227302,8.83303385,3356.0,3355.0,2.70680887]
[1738328227303,0.8191,3355.8,3355.0,2.70680887]
[1738328227608,0.03336854,3355.7,3355.0,2.69930887]
[1738328227760,8.83303385,3355.6,3355.0,2.69930887]
[1738328228103,0.7807,3355.5,3355.0,2.69930887]
[1738328228315,0.7807,3355.5,3354.2,0.7636]
[1738328228316,0.7807,3355.3,3354.2,0.7636]
[1738328228613,0.7807,3355.1,3353.8,3.46290887]
[1738328228788,0.83836854,3355.0,3353.8,2.69930887]
[1738328228988,0.805,3355.0,3354.1,2.69930887]
[1738328229161,0.805,3355.0,3354.2,0.0075]
[1738328229360,1.76880339,3355.0,3354.2,0.0075]
[1738328229813,0.805,3355.0,3354.4,2.69930887]
[1738328230105,0.805,3355.0,3354.5,0.0075]
[1738328230570,0.03336854,3354.9,3354.1,3.50970887]
[1738328230771,0.805,3354.8,3354.1,2.69930887]
[1738328232403,0.805,3354.8,3353.9,0.02981293]
[1738328232404,0.805,3354.6,3353.9,0.0075]
[1738328232556,0.03336854,3354.5,3353.9,0.0075]
[1738328232760,9.63803385,3354.6,3353.9,0.0075]
[1738328232959,0.03336854,3354.5,3353.9,0.0075]
[1738328235561,8.86640239,3354.5,3353.9,0.0075]
[1738328235793,9.83354263,3354.5,3353.9,0.0075]
[1738328236012,9.83354263,3354.5,3353.5,2.69930887]
[1738328236013,0.7549,3354.4,3353.5,2.69930887]
[1738328236364,0.7549,3354.4,3353.3,0.0075]
[1738328236783,8.83303385,3354.3,3353.2,2.69930887]
[1738328237064,0.7549,3354.1,3353.2,2.69930887]
[1738328238309,0.7549,3354.1,3353.3,0.03731331]
[1738328239115,0.7549,3354.1,3353.3,0.0075]
[1738328241265,8.83303385,3354.2,3353.6,0.0075]
[1738328241414,0.826,3354.5,3353.9,2.69930887]
[1738328241619,10.62493724,3354.5,3353.7,0.02791905]
[1738328241831,0.8314,3354.3,3353.6,2.69930887]
[1738328242125,0.8314,3354.1,3353.8,0.02791905]
[1738328242273,0.03336854,3354.0,3353.3,2.69930887]
[1738328242478,0.8314,3354.1,3353.3,2.69930887]
[1738328242692,0.8314,3354.1,3353.4,0.02791905]
[1738328242889,0.03336854,3354.0,3353.4,0.02791905]
[1738328243178,0.7519,3353.9,3353.4,0.02791905]
[1738328243395,0.7519,3353.9,3353.3,2.69930887]
[1738328243569,0.7519,3353.9,3353.5,0.02791905]
[1738328243770,0.7519,3353.9,3353.3,2.69930887]
[1738328243975,0.7519,3353.9,3353.6,0.02791905]
[1738328244172,0.7519,3353.9,3353.3,2.69930887]
[1738328244416,0.7519,3353.9,3353.7,0.02791905]
[1738328244599,0.7519,3353.9,3353.3,2.69930887]
[1738328244600,9.58493385,3353.9,3353.3,2.69930887]
[1738328244794,9.58493385,3353.9,3353.8,0.02791905]
[1738328245019,9.58493385,3353.9,3353.3,2.69930887]
[1738328245329,9.58493385,3353.9,3353.3,3.28178796]
[1738328245501,9.58493385,3353.9,3353.4,0.02791905]
[1738328245827,9.58493385,3353.9,3353.3,2.69930887]
[1738328246016,9.58493385,3353.9,3353.5,0.02791905]
[1738328246191,9.58493385,3353.9,3353.3,2.69930887]
[1738328246527,9.58493385,3353.9,3353.6,0.02791905]
[1738328246732,9.58493385,3353.9,3353.3,2.69930887]
[1738328246887,9.58493385,3353.9,3353.4,0.02791905]
[1738328247095,9.58493385,3353.9,3353.3,2.69930887]
[1738328247330,0.03336854,3353.8,3353.5,0.02791905]
[1738328247531,8.86640239,3353.8,3353.5,0.02791905]
[1738328247688,8.83303385,3353.7,3353.0,2.69930887]
[1738328247888,8.83303385,3353.7,3353.6,2.70680887]
[1738328248306,8.83303385,3353.7,3353.6,0.02799848]
[1738328248501,8.83303385,3353.7,3353.3,2.69930887]
[1738328248702,0.7828,3353.6,3353.3,2.69930887]
[1738328250106,0.7828,3353.6,3353.4,0.02799848]
[1738328250516,0.7828,3353.6,3353.5,0.02799848]
[1738328250715,1.74438339,3353.6,3353.0,2.70680887]
[1738328250918,0.7828,3353.6,3353.1,0.0075]
[1738328251104,0.7828,3353.6,3353.5,0.02799848]
[1738328251314,0.7828,3353.6,3353.1,0.0075]
[1738328251699,0.7828,3353.6,3353.2,0.02799848]
[1738328252096,0.81616854,3353.6,3353.0,2.69930887]
[1738328252440,0.96158339,3353.5,3353.3,0.02799848]
[1738328252664,0.96158339,3353.5,3353.0,2.69930887]
[1738328253229,0.7828,3353.6,3353.1,0.02799848]
[1738328253433,9.61583385,3353.6,3353.1,0.02799848]
[1738328254642,9.61583385,3353.6,3353.3,2.69930887]
[1738328254934,8.83303385,3353.6,3353.4,0.0075]
[1738328255298,8.83303385,3353.6,3353.5,0.02901291]
[1738328255501,0.2,3355.2,3353.5,0.02901291]
[1738328255502,8.83303385,3354.5,3353.6,0.84]
[1738328255726,8.83303385,3354.4,3354.2,2.69930887]
[1738328256646,8.83303385,3354.4,3354.3,0.02881873]
[1738328256816,8.83303385,3354.6,3354.3,0.02881873]
[1738328257140,8.83303385,3354.6,3354.4,0.02869961]
[1738328257341,8.83303385,3354.6,3354.5,2.69930887]
[1738328257544,8.83303385,3354.6,3354.5,2.72800848]
[1738328257843,10.48093723,3354.6,3354.5,0.02869961]
[1738328258347,0.7646,3354.5,3353.6,2.69930887]
[1738328258543,8.83303385,3354.4,3353.6,2.69930887]
[1738328258845,0.7646,3354.3,3353.4,0.5575]
[1738328259044,0.99313192,3354.2,3353.4,0.5575]
[1738328259749,0.99313192,3354.2,3353.3,2.69930887]
[1738328259907,0.7863,3354.1,3353.3,2.69930887]
[1738328260117,0.03336854,3354.0,3353.3,2.69930887]
[1738328260575,8.86640239,3354.0,3353.3,2.69930887]
[1738328260734,9.89428043,3353.9,3353.1,0.58819143]
[1738328261468,9.89428043,3353.9,3353.2,0.02848782]
[1738328263260,0.03336854,3353.8,3353.2,0.02848782]
[1738328263465,8.8259577,3353.7,3353.2,0.02848782]
[1738328264532,8.8259577,3353.7,3353.4,2.69930887]
[1738328264724,8.8259577,3353.7,3353.4,3.03165768]
[1738328265125,8.8259577,3353.7,3353.5,0.02871727]
[1738328268391,8.8259577,3354.0,3353.5,0.02871727]
[1738328270226,8.8259577,3354.0,3353.7,2.69930887]
[1738328270624,0.7737,3354.4,3353.7,2.69930887]
[1738328270871,0.7737,3354.4,3353.8,0.02891141]
[1738328271072,0.7737,3354.4,3353.5,0.7859]
[1738328271272,0.7737,3354.4,3353.4,2.69930887]
[1738328272063,0.7737,3354.4,3353.5,0.02891141]
[1738328273165,0.7737,3354.4,3353.6,0.8228]
[1738328273662,0.7737,3354.4,3353.7,0.02891141]
[1738328274168,0.7737,3354.4,3353.4,2.69930887]
[1738328274471,8.8259577,3354.3,3353.4,2.69930887]
[1738328274621,0.95996577,3354.2,3353.5,0.02891141]
[1738328275479,9.6195577,3354.1,3353.5,0.02891141]
[1738328275646,0.7936,3353.9,3353.5,0.02891141]
[1738328275841,0.7936,3353.9,3352.9,0.7558]
[1738328276048,0.7936,3353.9,3353.6,0.02792057]
[1738328276370,1.26195577,3353.8,3353.1,2.69930887]
[1738328276529,1.26195577,3353.8,3353.7,0.02792057]
[1738328276735,1.26195577,3353.8,3353.1,2.69930887]
[1738328276935,0.7936,3353.9,3353.2,0.02796467]
[1738328280182,8.8259577,3353.8,3353.2,0.02796467]
[1738328283637,8.8259577,3353.8,3352.9,0.7558]
[1738328283864,8.8259577,3353.8,3353.0,0.0280617]
[1738328285202,0.799,3353.7,3353.0,0.0280617]
[1738328285488,0.96249577,3353.6,3352.8,2.69930887]
[1738328285685,0.96249577,3353.6,3353.1,0.02807052]
[1738328285846,0.96249577,3353.6,3352.8,2.69930887]
[1738328286048,0.96249577,3353.6,3353.2,0.02807052]
[1738328286248,8.8259577,3353.5,3352.8,2.69930887]
[1738328286443,1.05874535,3353.4,3353.3,0.02807052]
[1738328286662,8.8259577,3353.5,3353.1,2.69930887]
[1738328286987,8.8259577,3353.5,3353.4,2.69930887]
[1738328287286,8.8259577,3353.5,3353.4,3.52020887]
[1738328287583,8.8259577,3353.5,3353.4,3.54846905]
[1738328289091,8.8259577,3354.2,3353.4,3.54846905]
[1738328289258,2.84716646,3355.2,3353.4,3.54846905]
[1738328289259,8.8259577,3354.8,3354.2,0.0075]
[1738328289593,0.8248,3355.5,3354.8,2.69930887]
[1738328289761,8.8259577,3355.4,3354.9,0.8091]
[1738328289963,9.79103347,3355.4,3354.9,0.8091]
[1738328292211,8.8259577,3355.4,3355.1,2.69930887]
[1738328294669,8.8259577,3355.7,3355.1,2.69930887]
[1738328294870,8.8259577,3355.3,3355.1,2.69930887]
[1738328298093,8.8259577,3355.9,3355.1,2.69930887]
[1738328298297,0.98295577,3355.8,3355.1,2.69930887]
[1738328300988,8.8259577,3355.7,3355.1,2.69930887]
[1738328302313,8.8259577,3355.7,3354.9,0.8091]
[1738328302507,8.8259577,3355.7,3354.8,2.69930887]
[1738328302508,9.5798577,3355.6,3354.8,2.69930887]
[1738328303249,9.5798577,3355.6,3354.2,0.59169938]
[1738328303250,8.8259577,3355.5,3354.5,2.69930887]
[1738328303425,0.8218,3355.3,3354.2,2.69930887]
[1738328303840,0.8218,3355.3,3354.0,0.761]
[1738328303841,0.8218,3355.3,3354.5,2.69930887]
[1738328306155,0.8218,3355.3,3354.2,2.69930887]
[1738328306730,1.0258,3355.3,3354.2,2.69930887]
[1738328306925,8.8259577,3355.2,3354.2,2.69930887]
[1738328307133,1.37343535,3355.1,3354.2,2.69930887]
[1738328310454,8.8259577,3355.2,3354.2,2.69930887]
[1738328310865,8.8259577,3355.2,3354.6,0.8161]
[1738328312943,8.8259577,3355.1,3354.6,0.8161]
[1738328314698,8.8259577,3355.1,3354.8,2.69930887]
[1738328314841,0.6111878,3356.1,3354.8,2.69930887]
[1738328314842,8.8259577,3355.5,3354.9,0.0075]
[1738328315042,8.8259577,3355.5,3355.3,2.69930887]
[1738328315746,8.8259577,3355.5,3355.0,2.97297043]
[1738328316093,0.7997,3355.4,3354.7,2.69930887]
[1738328317648,0.7997,3355.4,3354.7,2.72911608]
[1738328317851,8.8259577,3355.5,3355.3,2.69930887]
[1738328318148,8.8259577,3355.6,3355.3,2.69930887]
[1738328319304,8.8259577,3355.6,3355.0,2.69930887]
[1738328319516,0.7766,3355.5,3355.0,2.69930887]
[1738328320100,0.7766,3355.5,3355.1,0.0075]
[1738328320316,8.8259577,3355.6,3355.3,2.69930887]
[1738328320817,9.78621347,3355.6,3355.0,2.69930887]